bitfinex-derivatives/quotes_ETHF0:USTF0_20210111
["timestamp","ask_amount","ask_price","bid_price","bid_amount"]
[1610396110846,60.9483,965.54,965.5,0.31537998]
[1610396111050,60.9483,965.54,964.73,2.52303982]
[1610396111051,60.9483,965.54,965.39,0.31540657]
[1610396111446,60.9483,965.54,965.33,0.31543712]
[1610396111853,60.9483,965.54,965.25,0.31544804]
[1610396112251,4.00959,965.56,965.22,0.31546262]
[1610396113057,8.29273349,965.66,965.19,0.31549005]
[1610396113455,76.4651,966.33,965.43,0.31540321]
[1610396113854,76.4651,966.33,965.52,0.31538514]
[1610396114052,76.4651,966.33,965.52,0.21608514]
[1610396114254,76.4651,966.33,965.42,0.61785541]
[1610396114654,2.06,966.13,965.42,0.61785541]
[1610396114856,2.06,966.13,965.39,0.94604362]
[1610396115052,2.06,966.13,965.16,2.044]
[1610396115053,4.00959,965.62,965.53,4.00959]
[1610396115456,4.00959,965.62,965.6,0.94588698]
[1610396115854,4.00959,965.62,965.48,2.135]
[1610396115855,4.00959,965.62,965.55,0.94586593]
[1610396116257,4.00959,965.62,965.38,0.94600138]
[1610396116456,4.00959,965.62,965.31,0.94601307]
[1610396116858,4.00959,965.62,965.41,0.94593627]
[1610396117055,76.4651,966.33,965.41,3.05193627]
[1610396117255,76.4651,966.33,965.51,0.94591395]
[1610396117655,76.4651,966.33,965.58,0.94585239]
[1610396117855,76.4651,966.33,965.53,0.94581616]
[1610396118256,76.4651,966.33,965.5,0.94582039]
[1610396118657,76.4651,966.33,965.49,0.94587543]
[1610396118958,4.00959,965.5,965.45,0.94585817]
[1610396119358,4.00959,965.5,965.46,0.94589076]
[1610396119558,4.00959,965.5,965.43,0.945918]
[1610396119961,4.00959,965.5,965.31,0.94598938]
[1610396120362,4.00959,965.5,965.06,0.94617484]
[1610396120562,4.00959,965.5,964.98,0.94630397]
[1610396120965,4.00959,964.99,964.97,0.94632589]
[1610396121365,67.3321,966.7,964.97,1.2616918]
[1610396121565,12.24150007,967.2,964.97,1.2616918]
[1610396121765,8.28962553,966.03,965.3,81.418]
[1610396121968,8.28962553,966.03,965.54,0.94590061]
[1610396122164,2.207,966.56,965.54,2.95890061]
[1610396122565,85.7663,967.62,965.92,0.94561049]
[1610396122766,85.7663,967.62,965.92,2.53161049]
[1610396122967,4.00959,966.16,966.06,0.94534721]
[1610396123369,4.00959,966.16,966.14,0.9453466]
[1610396123570,2.245,967.57,966.14,3.3043466]
[1610396123970,2.245,967.57,966.14,2.359]
[1610396124371,2.245,967.57,966.17,0.9452237]
[1610396124569,60.1727,968.07,966.17,0.9452237]
[1610396124770,60.1727,968.07,966.32,0.94510409]
[1610396124976,4.00959,966.78,966.33,4.00959]
[1610396125471,4.00959,966.78,966.33,5.584429]
[1610396126073,4.00959,966.78,966.33,1.574839]
[1610396126272,60.1727,968.07,966.33,1.574839]
[1610396126673,60.1727,968.07,966.2,1.88966891]
[1610396126872,60.1727,968.07,966.14,69.8538]
[1610396126873,2.1946,966.34,966.15,2.5192261]
[1610396127074,2.1946,966.34,966.33,4.00959]
[1610396127474,4.00959,967.35,966.33,4.00959]
[1610396127876,4.00959,967.35,967.02,0.31487937]
[1610396128074,4.00959,967.35,967.02,2.03487937]
[1610396128277,4.00959,967.35,967.02,1.72]
[1610396128677,1.555,968.09,967.02,1.72]
[1610396129076,1.555,968.09,967.75,4.00959]
[1610396129278,12.21958398,969.08,967.75,4.00959]
[1610396129478,12.22517697,969.25,967.75,4.00959]
[1610396129878,2.093,969.29,967.75,4.00959]
[1610396130679,84.6187,969.41,967.75,4.00959]
[1610396131079,84.6187,969.41,968.58,4.00959]
[1610396131280,2.0515,969.58,968.22,68.7746]
[1610396131479,2.464,969.1,968.22,68.7746]
[1610396132282,2.464,969.1,968.14,2.122]
[1610396132684,2.0893,968.7,968.14,2.122]
[1610396132883,1.748,968.89,967.82,0.31457591]
[1610396133083,1.748,968.89,967.74,0.31460703]
[1610396133284,8.2169,968.65,967.7,65.1199]
[1610396133886,8.2169,968.65,967.77,0.31459833]
[1610396134087,8.2169,968.65,967.85,0.31458726]
[1610396134284,8.2169,968.65,967.85,2.21958726]
[1610396134485,1.792,968.65,967.85,2.21958726]
[1610396134686,2.464,969.1,968.2,73.5167]
[1610396134885,2.464,969.1,968.2,75.0267]
[1610396135087,6.0976,969.48,968.2,75.0267]
[1610396135287,4.00959,969.12,969.09,4.00959]
[1610396135485,2.106,969.68,969.09,4.00959]
[1610396136286,2.106,969.68,969.05,2.217]
[1610396136488,1.748,969.92,969.05,2.217]
[1610396137086,1.748,969.92,968.92,67.7793]
[1610396137287,4.00959,969.4,968.92,67.7793]
[1610396138986,1.748,969.92,968.92,67.7793]
[1610396139386,1.748,969.92,969.04,4.00959]
[1610396139587,1.748,969.92,969.04,6.28859]
[1610396139786,5.927,970.44,969.04,6.28859]
[1610396139987,5.927,970.44,969.06,0.31421543]
[1610396140187,5.927,970.44,969.08,0.31419678]
[1610396140588,5.927,970.44,969.14,0.31419111]
[1610396140887,5.9617,970.73,969.14,0.31419111]
[1610396141088,5.9617,970.73,969.17,0.3141952]
[1610396141289,5.9617,970.73,969.12,0.31416642]
[1610396141488,2.423,970.73,969.26,85.07]
[1610396141698,2.423,970.73,969.26,1.607]
[1610396141895,2.423,970.73,969.36,58.8582]
[1610396142696,6.0384,970.89,969.36,58.8582]
[1610396143096,6.3941,971.22,969.39,0.31409263]
[1610396143496,6.3941,971.22,969.51,0.31406967]
[1610396143696,6.3941,971.22,969.51,2.44406967]
[1610396143897,6.3941,971.22,969.58,0.31403658]
[1610396144096,12.12656017,971.56,969.58,0.31403658]
[1610396144298,6.2117,971.55,970.05,70.1534]
[1610396144497,13.9405,971.55,970.05,70.1534]
[1610396144796,1.566,971.55,970.05,70.1534]
[1610396145396,4.00959,971.38,971.3,4.00959]
[1610396145695,4.00959,971.38,969.91,0.31394082]
[1610396146097,4.00959,971.38,968.0,30.0]
[1610396146098,4.00959,971.38,969.96,0.31393556]
[1610396146297,4.00959,971.38,969.96,1.698]
[1610396147298,1.566,971.55,970.62,4.00959]
[1610396147500,1.566,971.55,970.95,74.9388]
[1610396147698,11.98767646,971.94,970.95,74.9388]
[1610396147898,12.0024696,972.17,970.95,74.9388]
[1610396148298,6.2133,972.67,970.95,74.9388]
[1610396148299,12.01435785,972.46,970.95,74.9388]
[1610396148499,8.23554416,972.37,970.95,74.9388]
[1610396148699,10.31454416,972.37,970.95,74.9388]
[1610396148915,2.079,972.37,970.93,1.702]
[1610396149300,4.00959,971.16,970.93,1.702]
[1610396149504,2.0626,971.92,970.93,1.702]
[1610396150101,12.04595346,972.36,970.93,1.702]
[1610396150309,2.079,972.37,970.93,1.702]
[1610396150310,12.05339436,972.33,970.93,1.702]
[1610396150509,12.05339436,972.33,971.3,63.2698]
[1610396150713,2.079,972.37,971.3,65.1108]
[1610396150910,10.13292014,972.41,971.3,65.1108]
[1610396151307,10.13292014,972.41,972.28,4.00959]
[1610396151507,4.00959,972.47,971.3,65.1108]
[1610396151707,4.00959,972.47,972.17,1.65]
[1610396151904,14.29498737,973.34,972.17,1.65]
[1610396152308,14.32598491,973.48,972.17,1.65]
[1610396152518,14.35338379,973.53,972.23,80.3976]
[1610396152913,5.0162187,974.21,972.23,80.3976]
[1610396152914,14.36236515,973.62,972.23,80.3976]
[1610396153106,14.35000651,973.81,972.23,80.3976]
[1610396153308,4.00959,973.24,973.06,4.00959]
[1610396153907,1.773,973.41,973.06,4.00959]
[1610396155308,1.773,973.41,972.92,72.4217]
[1610396155309,1.773,973.41,973.4,4.00959]
[1610396155509,6.5135,974.09,972.55,1.563]
[1610396155709,20.86831819,974.09,972.99,58.8535]
[1610396155908,10.3068,974.06,972.99,58.8535]
[1610396156109,14.36178821,974.02,972.55,1.563]
[1610396156308,2.306,974.06,972.17,1.65]
[1610396156309,84.5539,973.39,972.17,1.65]
[1610396156508,86.6109,973.39,971.68,0.31334648]
[1610396156709,86.6109,973.39,971.52,75.3231]
[1610396156909,6.0858,973.38,971.52,75.3231]
[1610396157312,4.00959,971.56,971.52,75.3231]
[1610396157510,4.00959,971.56,971.22,0.31346367]
[1610396157710,1.833,972.01,971.11,0.31347117]
[1610396158110,1.833,972.01,971.02,72.7488]
[1610396158111,1.833,972.01,971.21,0.31346544]
[1610396158311,1.833,972.01,971.21,2.71046544]
[1610396158510,67.5939,972.8,971.21,2.71046544]
[1610396158511,1.31737026,972.42,971.21,2.397]
[1610396158910,11.59797599,972.79,971.3,0.31342976]
[1610396158911,1.31903827,972.61,971.3,0.31342976]
[1610396159112,1.31905564,972.52,971.22,0.31344131]
[1610396159311,4.00959,972.15,972.0,4.00959]
[1610396160114,1.3198202,972.47,972.0,4.00959]
[1610396160512,1.31979685,972.44,972.0,4.00959]
[1610396160813,1.31916572,972.4,972.0,4.00959]
[1610396161214,1.31921061,972.44,972.0,4.00959]
[1610396161414,1.31921061,972.44,972.14,4.00959]
[1610396161615,1.31984372,972.51,972.14,4.00959]
[1610396162015,1.716,972.62,972.14,4.00959]
[1610396162215,1.716,972.62,971.63,1.733]
[1610396162419,1.31950343,972.51,971.63,1.733]
[1610396162816,1.31968371,972.45,971.63,1.733]
[1610396163218,1.3203055,972.48,971.63,1.733]
[1610396163415,4.00959,971.87,971.63,1.733]
[1610396163618,2.20050916,972.67,971.63,1.733]
[1610396163817,1.31623813,972.42,971.63,1.733]
[1610396164016,1.31701551,972.41,971.63,1.733]
[1610396164422,8.00122877,972.8,971.63,1.733]
[1610396164423,1.31754725,972.44,971.63,1.733]
[1610396164824,1.31796097,972.49,971.63,1.733]
[1610396165021,1.31860535,972.55,971.63,1.733]
[1610396165420,1.3183165,972.6,971.3,0.3134919]
[1610396165618,1.3183165,972.6,971.76,81.9806]
[1610396166020,1.31830494,972.58,971.76,81.9806]
[1610396166219,1.31863707,972.63,971.76,81.9806]
[1610396166519,1.31847894,972.6,971.76,81.9806]
[1610396166919,1.31864277,972.63,971.76,81.9806]
[1610396167320,4.00959,972.04,972.02,4.00959]
[1610396167519,1.31857958,972.56,972.02,4.00959]
[1610396167721,1.31893396,972.52,972.02,6.25259]
[1610396167920,1.31899291,972.53,972.02,6.25259]
[1610396168120,1.31899291,972.53,972.02,2.243]
[1610396168321,1.3191076,972.5,972.02,2.243]
[1610396168721,1.31930882,972.48,971.74,83.3443]
[1610396169322,4.00959,971.91,971.74,87.35389]
[1610396169522,1.32127188,972.45,971.74,87.35389]
[1610396169722,1.32389406,972.43,971.74,87.35389]
[1610396169924,1.32389406,972.43,971.74,4.00959]
[1610396170124,2.2064901,972.61,971.74,4.00959]
[1610396170125,1.32746819,972.6,972.08,68.9538]
[1610396170327,1.33365453,972.94,972.08,71.0728]
[1610396170824,1.33671563,973.11,972.08,71.0728]
[1610396171022,0.33860313,973.14,972.08,71.0728]
[1610396171225,2.22785938,973.24,972.08,71.0728]
[1610396171423,2.22785938,973.24,973.23,4.00959]
[1610396171624,1.33815504,973.26,973.23,4.00959]
[1610396172224,2.23711539,973.67,973.23,4.00959]
[1610396172425,2.23711539,973.67,972.98,87.4928]
[1610396172625,2.23995993,973.58,972.98,87.4928]
[1610396172927,2.24345164,973.54,972.98,87.4928]
[1610396173425,2.2496677,973.51,973.37,4.00959]
[1610396173726,2.25334985,973.57,973.37,4.00959]
[1610396174025,2.25501452,973.6,973.37,4.00959]
[1610396174425,2.2583994,973.61,973.37,4.00959]
[1610396174725,4.00959,973.79,973.37,4.00959]
[1610396174726,2.26364583,973.59,973.37,4.00959]
[1610396175125,2.26364583,973.59,973.37,6.35359]
[1610396175529,9.67436369,973.79,973.37,6.35359]
[1610396175530,2.26785446,973.72,973.37,6.35359]
[1610396175727,3.056,973.38,973.37,6.35359]
[1610396175937,2.26573183,973.81,973.37,6.35359]
[1610396176127,3.97069503,973.91,973.37,6.35359]
[1610396176329,1.52479503,973.91,973.41,68.6636]
[1610396176529,3.9757676,974.1,973.41,68.6636]
[1610396176729,5.67723733,974.2,973.41,68.6636]
[1610396176928,5.67738348,974.42,973.41,68.6636]
[1610396177128,5.66615152,974.51,973.41,68.6636]
[1610396177528,5.65238228,974.53,974.32,4.00959]
[1610396178130,5.64061526,974.52,974.32,4.00959]
[1610396178531,5.63760846,974.5,974.32,4.00959]
[1610396179128,4.00959,974.68,974.32,4.00959]
[1610396179129,5.63883045,974.55,974.32,4.00959]
[1610396179428,5.63883045,974.55,974.54,4.00959]
[1610396179629,5.63345221,974.56,974.54,4.00959]
[1610396179828,7.89210935,974.65,974.54,4.00959]
[1610396179829,5.6325866,974.55,974.54,4.00959]
[1610396180431,5.62383448,974.58,974.54,4.00959]
[1610396180831,5.61827322,974.67,974.54,4.00959]
[1610396181031,5.61770685,974.72,974.54,4.00959]
[1610396181432,5.61600734,974.73,974.71,4.00959]
[1610396181832,5.61332511,974.8,974.71,4.00959]
[1610396182233,4.00959,975.08,974.71,4.00959]
[1610396182832,2.0424,975.07,974.71,4.00959]
[1610396183034,5.61272063,975.11,975.0,61.472]
[1610396183236,12.34125686,975.4,975.0,61.472]
[1610396183237,5.42526077,975.29,975.0,61.472]
[1610396183434,3.43068146,975.39,975.28,4.00959]
[1610396183633,7.88384411,976.09,975.28,4.00959]
[1610396183836,7.88384411,976.09,975.28,77.63019]
[1610396184034,4.85774411,976.09,975.28,77.63019]
[1610396184235,4.411e-05,976.09,975.28,77.63019]
[1610396184433,7.88772065,976.31,975.28,77.63019]
[1610396184934,12.40592182,976.69,975.28,77.63019]
[1610396185437,12.40592182,976.69,976.68,4.00959]
[1610396185633,12.40592182,976.69,976.68,6.30059]
[1610396185835,12.43278405,977.07,976.68,6.30059]
[1610396186032,12.43278405,977.07,976.72,75.3365]
[1610396186234,21.47070066,977.85,976.72,75.3365]
[1610396186235,12.42153465,977.23,976.72,75.3365]
[1610396186434,12.42153465,977.23,976.68,2.291]
[1610396186634,12.43271612,977.42,976.68,2.291]
[1610396187035,12.42912012,977.38,976.68,2.291]
[1610396187236,14.31212012,977.38,976.07,67.7442]
[1610396187434,14.31212012,977.38,977.06,4.00959]
[1610396187435,4.00959,977.27,977.06,4.00959]
[1610396187635,12.42791743,977.32,977.06,4.00959]
[1610396188036,1.883,977.38,976.45,1.585]
[1610396188238,12.43595347,977.39,976.45,1.585]
[1610396188438,12.45587244,977.55,976.45,1.585]
[1610396188836,17.0041845,978.07,976.45,1.585]
[1610396189437,4.00959,977.85,977.76,4.00959]
[1610396189636,5.71259,977.85,977.76,4.00959]
[1610396189837,1.703,977.85,977.76,4.00959]
[1610396190036,1.703,977.85,976.45,1.585]
[1610396190636,1.703,977.85,976.22,0.31194163]
[1610396190836,1.703,977.85,975.99,0.31196555]
[1610396191235,1.703,977.85,975.47,2.0627]
[1610396191236,1.703,977.85,976.33,77.2534]
[1610396191436,1.703,977.85,976.34,2.0629]
[1610396191636,5.9224,978.11,977.84,4.00959]
[1610396193036,5.9224,978.11,977.84,5.77759]
[1610396193537,4.00959,977.98,977.84,5.77759]
[1610396194138,2.325,978.0,977.84,4.00959]
[1610396194937,2.325,978.0,977.84,6.11559]
[1610396195337,5.9224,978.11,977.84,6.11559]
[1610396195537,5.9224,978.11,978.1,4.00959]
[1610396197539,4.00959,978.86,978.1,4.00959]
[1610396197939,11.3252,978.83,978.09,2.333]
[1610396198139,1.799,978.83,977.32,2.328]
[1610396198342,65.9874,978.5,977.34,0.31161111]
[1610396198539,2.025,978.49,976.84,0.31169012]
[1610396198738,67.8864,978.5,976.84,0.31169012]
[1610396198941,67.8864,978.5,976.84,1.89]
[1610396199539,67.8864,978.5,977.16,4.00959]
[1610396201642,4.00959,977.94,977.75,4.00959]
[1610396201841,6.34859,977.94,977.75,4.00959]
[1610396202241,2.339,977.94,976.84,1.663]
[1610396202441,2.339,977.94,977.15,80.9161]
[1610396202642,2.339,977.94,977.15,83.2621]
[1610396202843,1.899,978.5,977.15,83.2621]
[1610396203444,2.0563,978.49,977.15,83.2621]
[1610396203642,4.00959,978.26,977.15,83.2621]
[1610396203843,5.76359,978.26,977.15,83.2621]
[1610396204443,5.76359,978.26,977.15,2.346]
[1610396204843,2.0625,978.25,976.84,1.663]
[1610396205045,5.76359,978.26,976.84,1.663]
[1610396205245,5.76359,978.26,976.62,0.31174781]
[1610396205450,5.76359,978.26,976.5,0.3117995]
[1610396205646,1.754,978.26,976.5,0.3117995]
[1610396205847,1.754,978.26,976.48,0.31183029]
[1610396206046,0.6,977.93,976.55,0.31179475]
[1610396206447,0.6,977.93,976.57,0.31178406]
[1610396206649,0.6,977.93,976.57,2.51178406]
[1610396206848,0.6,977.93,976.65,0.31176864]
[1610396207147,0.6,977.93,976.66,0.31176456]
[1610396207347,0.6,977.93,976.67,2.063]
[1610396207548,4.00959,977.85,976.67,2.063]
[1610396207747,4.00959,977.85,976.61,0.3117772]
[1610396207947,0.6,977.93,976.57,2.2]
[1610396208347,0.6,977.93,976.64,0.31177873]
[1610396208547,2.0682,977.92,976.82,0.31176224]
[1610396208747,0.6,977.93,976.82,0.31176224]
[1610396208949,0.6,977.93,976.84,0.3117416]
[1610396209647,4.00959,977.86,977.66,4.00959]
[1610396210048,1.924,977.92,976.82,2.239]
[1610396211648,1.924,977.92,977.8,4.00959]
[1610396213049,0.6,977.93,977.8,4.00959]
[1610396213551,0.6,977.93,977.92,4.00959]
[1610396218460,0.6,977.93,977.12,58.9535]
[1610396218660,2.684,977.93,977.12,58.9535]
[1610396219656,2.684,977.93,977.92,4.00959]
[1610396220658,2.684,977.93,977.23,1.548]
[1610396221357,2.684,977.93,977.12,58.9535]
[1610396221557,2.684,977.93,977.92,4.00959]
[1610396221757,2.684,977.93,977.12,58.9535]
[1610396222158,2.684,977.93,976.87,0.31164842]
[1610396222560,2.684,977.93,976.82,2.239]
[1610396222758,80.5481,977.73,976.76,0.31166725]
[1610396222959,82.1411,977.73,976.65,0.31173512]
[1610396223358,82.1411,977.73,976.29,0.31176592]
[1610396223359,81.9411,977.73,976.29,0.31176592]
[1610396223559,4.00959,976.34,976.11,0.31183477]
[1610396223759,5.62759,976.34,976.11,0.31183477]
[1610396223959,5.62759,976.34,975.73,4.00959]
[1610396224562,5.62759,976.34,975.57,0.31201838]
[1610396224960,5.62759,976.34,975.4,0.31205068]
[1610396225161,5.62759,976.34,975.3,0.31209202]
[1610396225560,5.62759,976.34,975.83,4.00959]
[1610396225561,4.00959,976.09,975.83,4.00959]
[1610396225760,6.32559,976.09,975.83,4.00959]
[1610396225961,2.316,976.09,975.83,4.00959]
[1610396227662,2.316,976.09,976.08,4.00959]
[1610396228164,2.316,976.09,975.44,0.31212055]
[1610396228363,2.316,976.09,975.05,1.56060274]
[1610396228364,2.316,976.09,975.35,0.31211757]
[1610396228964,2.316,976.09,975.37,0.31210544]
[1610396229264,2.316,976.09,975.39,0.31210881]
[1610396229665,2.316,976.09,975.87,4.00959]
[1610396230666,1.618,976.34,975.87,4.00959]
[1610396230869,21.60631241,978.21,975.87,4.00959]
[1610396231068,85.7286,978.07,975.87,4.00959]
[1610396231667,4.00959,977.52,976.87,4.00959]
[1610396232068,5.95359,977.52,976.87,4.00959]
[1610396232672,1.944,977.52,976.87,4.00959]
[1610396233670,1.944,977.52,977.51,4.00959]
[1610396234070,1.944,977.52,976.77,2.217]
[1610396234272,1.944,977.52,976.8,0.31162272]
[1610396234473,66.9093,978.51,976.8,0.31162272]
[1610396234672,2.0419,978.24,976.79,0.3116114]
[1610396235073,66.9093,978.51,976.72,0.31164829]
[1610396235271,66.9093,978.51,976.55,1.665]
[1610396235471,2.0472,977.98,976.55,1.665]
[1610396235672,4.00959,977.29,977.11,4.00959]
[1610396235872,4.00959,977.29,976.55,1.665]
[1610396236073,5.61259,977.29,976.31,0.31173055]
[1610396236276,5.61259,977.29,976.25,0.31177021]
[1610396236675,5.61259,977.29,976.1,0.31181446]
[1610396237175,5.61259,977.29,976.01,0.31183351]
[1610396237378,5.61259,977.29,975.89,0.31185699]
[1610396237679,1.603,977.29,975.83,0.3118939]
[1610396237876,1.603,977.29,975.54,1.24757558]
[1610396237877,1.603,977.29,975.74,0.31190788]
[1610396238277,1.603,977.29,975.73,0.31193003]
[1610396238478,1.603,977.29,975.69,0.31193617]
[1610396238878,1.603,977.29,975.72,0.3119229]
[1610396239290,1.603,977.29,975.89,0.31190246]
[1610396239487,1.603,977.29,976.01,0.31186936]
[1610396239689,4.00959,976.82,976.33,4.00959]
[1610396240079,1.603,977.29,976.33,4.00959]
[1610396240479,1.603,977.29,976.35,0.31176195]
[1610396240879,1.603,977.29,976.41,0.311739]
[1610396241083,77.9318,978.25,976.41,0.311739]
[1610396241290,77.9318,978.25,976.33,5.50459]
[1610396241291,77.9318,978.25,976.72,0.31165386]
[1610396241484,77.9318,978.25,976.82,0.31165382]
[1610396241681,6.69359,977.93,977.78,4.00959]
[1610396242495,2.684,977.93,977.78,4.00959]
[1610396243685,2.684,977.93,977.92,4.00959]
[1610396244284,2.684,977.93,977.08,68.4306]
[1610396244683,2.684,977.93,976.92,1.617]
[1610396245086,2.684,977.93,976.79,0.31161715]
[1610396245483,2.684,977.93,976.61,0.31162567]
[1610396245694,4.00959,977.06,976.87,4.00959]
[1610396245884,6.05859,977.06,976.87,4.00959]
[1610396246284,6.05859,977.06,976.37,0.31169051]
[1610396246685,6.05859,977.06,976.35,0.31170913]
[1610396246884,2.049,977.06,976.35,0.31170913]
[1610396247084,2.049,977.06,976.37,0.31170863]
[1610396247285,2.049,977.06,976.34,0.31171128]
[1610396247686,2.049,977.06,975.95,1.55855639]
[1610396247687,4.00959,976.98,976.89,4.00959]
[1610396247884,4.00959,976.98,976.33,0.31171908]
[1610396248084,4.00959,976.98,976.31,0.3117052]
[1610396248284,2.049,977.06,976.33,0.31170391]
[1610396248484,2.049,977.06,976.33,1.92170391]
[1610396248686,5.9091,977.92,976.33,1.92170391]
[1610396248687,5.9091,977.92,976.52,0.31167036]
[1610396249086,2.684,977.93,976.58,0.31166325]
[1610396249288,2.684,977.93,976.6,0.31166642]
[1610396249687,4.00959,977.19,977.01,4.00959]
[1610396250088,4.00959,977.19,976.58,2.163]
[1610396250291,4.00959,977.19,976.51,0.31167709]
[1610396250292,6.34559,977.19,976.51,0.31167709]
[1610396250488,6.34559,977.19,976.33,1.61]
[1610396250489,6.34559,977.19,976.46,0.31169219]
[1610396250889,6.34559,977.19,976.44,0.31169912]
[1610396251288,6.34559,977.19,976.43,0.31169763]
[1610396251690,4.00959,976.83,976.64,4.00959]
[1610396252391,2.336,977.19,976.64,4.00959]
[1610396253693,2.336,977.19,977.18,4.00959]
[1610396253894,1.847,977.39,977.18,4.00959]
[1610396254296,4.00959,977.92,977.18,4.00959]
[1610396255696,71.1,978.52,977.74,4.00959]
[1610396255896,6.3497,978.68,977.74,4.00959]
[1610396257700,4.00959,978.3,977.92,4.00959]
[1610396258100,4.00959,978.3,977.4,81.1339]
[1610396258500,1.536,978.14,977.4,81.1339]
[1610396258901,1.536,978.14,977.16,0.31151074]
[1610396259102,1.536,978.14,977.15,2.024]
[1610396259701,4.00959,977.78,977.59,4.00959]
[1610396259902,4.00959,977.78,977.15,2.024]
[1610396260302,1.536,978.14,977.15,2.024]
[1610396260504,1.536,978.14,976.95,0.31161106]
[1610396260703,1.536,978.14,976.86,0.31161023]
[1610396260902,66.9562,978.1,976.86,0.31161023]
[1610396261104,66.9562,978.1,976.8,0.31162835]
[1610396261303,66.9562,978.1,976.72,0.31165198]
[1610396261704,66.9562,978.1,977.18,4.00959]
[1610396261903,66.9562,978.1,976.68,0.31166689]
[1610396262104,66.9562,978.1,976.66,0.31164884]
[1610396262305,66.9562,978.1,976.7,0.31165603]
[1610396262904,1.536,978.14,976.7,0.31165603]
[1610396263105,1.536,978.14,976.75,78.0078]
[1610396263504,1.536,978.14,976.76,0.31167779]
[1610396263704,1.536,978.14,977.92,4.00959]
[1610396272312,1.536,978.14,977.4,0.31145648]
[1610396272512,84.3416,977.85,977.4,0.31145648]
[1610396272711,84.3416,977.85,976.48,65.3299]
[1610396272712,84.3416,977.85,977.22,0.31150435]
[1610396272911,84.3416,977.85,976.88,0.31162082]
[1610396273311,84.3416,977.85,976.77,0.31164054]
[1610396273712,4.00959,976.99,976.89,4.00959]
[1610396273912,6.30359,976.99,976.89,4.00959]
[1610396274312,2.294,976.99,976.89,4.00959]
[1610396278918,2.282,976.99,976.89,4.00959]
[1610396279118,2.282,976.99,976.64,0.31172208]
[1610396279521,2.282,976.99,976.59,0.31171538]
[1610396279719,2.282,976.99,976.46,83.1103]
[1610396279720,2.282,976.99,976.7,4.00959]
[1610396281722,2.282,976.99,976.98,4.00959]
[1610396282321,2.282,976.99,976.6,0.31173854]
[1610396282721,2.282,976.99,976.59,0.31173963]
[1610396283122,2.282,976.99,976.51,0.31175282]
[1610396283523,2.282,976.99,976.36,0.31179699]
[1610396283722,4.00959,976.9,976.79,4.00959]
[1610396284122,4.00959,976.9,976.3,0.31181861]
[1610396284523,4.00959,976.9,976.27,0.31180369]
[1610396284725,4.00959,976.9,976.32,0.31180981]
[1610396285125,4.00959,976.9,976.27,0.31181211]
[1610396285326,4.00959,976.9,976.26,0.31181911]
[1610396285725,4.00959,976.46,976.35,4.00959]
[1610396285927,4.00959,976.46,976.2,0.31184311]
[1610396286126,4.00959,976.46,976.18,0.31184981]
[1610396286328,2.11,976.47,976.18,0.31184981]
[1610396286726,2.11,976.47,976.19,0.3118677]
[1610396287129,2.11,976.47,976.24,0.31185169]
[1610396287327,2.11,976.47,976.25,0.31185027]
[1610396287730,2.11,976.47,976.21,0.31185817]
[1610396287928,4.00959,976.31,976.18,4.00959]
[1610396288127,2.11,976.47,976.13,0.31187228]
[1610396288328,2.11,976.47,976.11,0.31188432]
[1610396288528,2.11,976.47,976.22,0.31185714]
[1610396288728,1.884,976.7,976.22,0.31185714]
[1610396288930,1.884,976.7,976.3,0.31184748]
[1610396289230,1.884,976.7,976.29,0.31183584]
[1610396289630,1.884,976.7,976.27,0.31184045]
[1610396290029,1.884,976.7,976.26,0.31185238]